bitfinex/quotes_ETHUSD_20220119
["timestamp","ask_amount","ask_price","bid_price","bid_amount"]
[1642626810329,1.88635533,3123.7,3123.5,1.6003]
[1642626810529,1.88635533,3123.7,3123.6,0.28803]
[1642626811577,1.88635533,3123.7,3123.6,3.14133763]
[1642626811780,1.88635533,3123.7,3123.6,3.01333763]
[1642626812778,1.88635533,3123.7,3123.6,3.01874712]
[1642626812977,1.88635533,3123.7,3123.6,0.16003]
[1642626813584,1.88635533,3123.7,3123.6,3.04180062]
[1642626813988,1.88635533,3123.7,3123.6,0.16003]
[1642626814379,1.88635533,3123.7,3123.4,1.6003]
[1642626814580,1.88635533,3123.7,3123.3,0.16003]
[1642626814986,1.88635533,3123.7,3123.4,0.00113684]
[1642626815629,1.88635533,3123.7,3123.4,0.80034]
[1642626815831,1.88635533,3123.7,3123.3,0.00170527]
[1642626815832,1.88635533,3123.7,3123.3,1.60242527]
[1642626816028,1.88635533,3123.7,3123.3,0.00170527]
[1642626816229,1.88635533,3123.7,3123.4,0.00113684]
[1642626816432,1.88635533,3123.7,3123.3,0.00170527]
[1642626817029,1.44978169,3123.0,3122.9,1.60486896]
[1642626817330,1.44978169,3123.0,3122.9,1.60089]
[1642626817732,1.88635533,3123.7,3122.9,7.74617042]
[1642626817939,1.88635533,3123.7,3123.6,5.66284808]
[1642626818132,1.88635533,3123.7,3123.6,6.09084808]
[1642626818331,0.02,3124.1,3123.6,7.09084808]
[1642626818533,1.81475636,3123.8,3123.7,6.778]
[1642626818733,1.81589321,3123.8,3123.7,1.28803]
[1642626819177,1.81589321,3123.8,3123.7,1.08817]
[1642626819779,1.81589321,3123.8,3123.7,0.96017]
[1642626820585,1.81589321,3123.8,3123.7,0.80014]
[1642626820792,1.81589321,3123.8,3123.1,0.128]
[1642626821182,1.81589321,3123.8,3123.2,0.00227369]
[1642626821781,1.81589321,3123.8,3122.9,0.00397896]
[1642626821983,1.43866556,3123.0,3122.9,0.00397896]
[1642626822186,2.00201571,3123.0,3122.9,0.96450896]
[1642626822384,2.00201571,3123.0,3122.9,6.91450896]
[1642626822585,2.00201571,3123.0,3122.9,8.04250896]
[1642626822830,0.00113685,3123.8,3123.0,5.65]
[1642626823031,0.00113685,3123.8,3123.1,1.128]
[1642626823235,0.00113685,3123.8,3123.1,1.13084212]
[1642626823236,2.05251674,3123.7,3123.1,1.13084212]
[1642626823435,1.31164238,3123.4,3123.2,0.00227369]
[1642626823832,1.31164238,3123.4,3123.3,0.16003]
[1642626824239,1.31164238,3123.4,3123.3,0.16173527]
[1642626829983,1.31164238,3123.4,3123.3,0.00170527]
[1642626833040,1.31164238,3123.4,3123.1,0.00284212]
[1642626834677,2.05251674,3123.7,3123.1,0.00284212]
[1642626834974,0.00113685,3123.8,3123.2,1.10036]
[1642626835175,1.70893019,3123.6,3123.3,0.92835]
[1642626835378,1.70893019,3123.6,3123.3,0.93005527]
[1642626835577,1.70893019,3123.6,3123.4,0.00113684]
[1642626835777,2.97361255,3123.6,3123.4,0.00113684]
[1642626835980,2.97361255,3123.6,3123.5,0.16003]
[1642626837735,1.70893019,3123.6,3123.5,0.16003]
[1642626838936,3.01675181,3123.6,3123.5,0.16003]
[1642626839738,3.01675181,3123.6,3123.5,2.3015858]
[1642626839944,3.01675181,3123.6,3123.5,0.16003]
[1642626840343,3.01675181,3123.6,3123.5,2.30439391]
[1642626840543,3.01675181,3123.6,3123.5,0.16003]
[1642626840743,0.00113685,3123.8,3123.5,3.10570892]
[1642626840954,0.00113685,3123.8,3123.7,5.81003]
[1642626841150,0.00113685,3123.8,3123.7,13.45688601]
[1642626841347,0.00113685,3123.8,3123.7,13.75688601]
[1642626842176,0.00113685,3123.8,3123.7,13.72265182]
[1642626842376,0.00113685,3123.8,3123.7,10.00661892]
[1642626842774,0.00113685,3123.8,3123.7,4.35661892]
[1642626842976,0.00113685,3123.8,3123.7,2.30541892]
[1642626843980,0.00113685,3123.8,3123.7,2.14538892]
[1642626844277,0.00113685,3123.8,3123.5,0.80011]
[1642626844278,1.27539823,3123.7,3123.5,0.80011]
[1642626845835,1.27539823,3123.7,3123.4,1.76137684]
[1642626846040,1.27539823,3123.7,3123.4,0.00113684]
[1642626846436,1.27539823,3123.7,3123.3,0.00170527]
[1642626848340,1.27539823,3123.7,3123.2,0.00227369]
[1642626848740,0.5451048,3123.6,3123.2,0.00227369]
[1642626849777,1.27539823,3123.7,3123.2,0.00227369]
[1642626850384,0.54512435,3123.6,3123.2,0.00227369]
[1642626850583,1.27539823,3123.7,3123.2,0.00227369]
[1642626850986,0.54577213,3123.6,3123.2,0.00227369]
[1642626852184,1.27539823,3123.7,3123.2,0.00227369]
[1642626852385,0.54574402,3123.6,3123.2,0.00227369]
[1642626853529,1.27539823,3123.7,3123.2,0.00227369]
[1642626854933,0.54690974,3123.6,3123.2,0.00227369]
[1642626855934,1.27539823,3123.7,3123.2,0.00227369]
[1642626856335,0.54585576,3123.6,3123.2,0.00227369]
[1642626856579,1.27539823,3123.7,3123.2,0.00227369]
[1642626857681,0.54583847,3123.6,3123.2,0.00227369]
[1642626857884,1.27539823,3123.7,3123.2,0.00227369]
[1642626859885,1.27539823,3123.7,3123.2,2.16846857]
[1642626860334,1.27539823,3123.7,3123.3,0.00170527]
[1642626861732,1.27539823,3123.7,3123.3,2.16790015]
[1642626862032,0.54636612,3123.6,3123.4,2.16733172]
[1642626862231,0.54636612,3123.6,3123.5,2.16619488]
[1642626862833,0.54636612,3123.6,3123.4,0.00113684]
[1642626863233,0.54636612,3123.6,3123.4,2.16733172]
[1642626863432,1.27539823,3123.7,3123.5,2.16619488]
[1642626863733,0.54696908,3123.6,3123.5,2.16619488]
[1642626865182,1.27539823,3123.7,3123.5,2.16619488]
[1642626866789,0.5466206,3123.6,3123.5,2.16619488]
[1642626868028,1.27539823,3123.7,3123.5,2.16619488]
[1642626868431,0.54669201,3123.6,3123.5,2.16619488]
[1642626870838,1.27539823,3123.7,3123.5,2.16619488]
[1642626871035,0.54729462,3123.6,3123.5,2.16619488]
[1642626871236,1.27539823,3123.7,3123.5,2.16619488]
[1642626871490,0.54734289,3123.6,3123.5,2.16619488]
[1642626873485,1.27539823,3123.7,3123.5,2.16619488]
[1642626873680,0.54736023,3123.6,3123.5,2.16619488]
[1642626874089,1.27539823,3123.7,3123.5,2.16619488]
[1642626875532,0.54902381,3123.6,3123.5,2.16619488]
[1642626876332,1.27539823,3123.7,3123.5,2.16619488]
[1642626876533,0.54917858,3123.6,3123.5,2.16619488]
[1642626877532,1.27539823,3123.7,3123.5,2.16619488]
[1642626878133,0.54917962,3123.6,3123.5,2.16619488]
[1642626878738,1.27539823,3123.7,3123.5,2.16619488]
[1642626879986,3.06343768,3123.9,3123.5,2.16619488]
[1642626880190,0.54913869,3123.8,3123.5,2.96644488]
[1642626880387,0.54913869,3123.8,3123.6,2.16619488]
[1642626882286,0.54913869,3123.8,3123.6,2.11619488]
[1642626884436,0.54913869,3123.8,3123.4,0.00113684]
[1642626884836,0.54913869,3123.8,3123.3,0.00170527]
[1642626885037,0.54913869,3123.8,3123.2,0.00227369]
[1642626885640,5.65,3123.6,3122.9,1.73622513]
[1642626885941,2.89523452,3123.7,3122.9,0.128]
[1642626885942,1.25026555,3123.4,3122.9,0.128]
[1642626886617,2.1675601,3123.3,3122.9,0.128]
[1642626886814,0.462,3123.2,3122.9,0.128]
[1642626888815,2.93772061,3123.1,3122.9,0.128]
[1642626889016,2.93772061,3123.1,3122.1,1.60822513]
[1642626889017,3.39972061,3123.1,3122.1,1.60822513]
[1642626889218,4.212,3123.1,3123.0,0.00113685]
[1642626889716,4.212,3123.1,3122.1,0.00625266]
[1642626890028,4.212,3123.1,3122.1,1.60822513]
[1642626890029,0.80082,3123.0,3122.1,1.60822513]
[1642626890233,1.49756872,3122.2,3122.1,1.60822513]
[1642626890438,1.49756872,3122.2,3122.0,1.60822513]
[1642626890439,2.32428277,3122.1,3122.0,1.60822513]
[1642626890640,2.32428277,3122.1,3121.9,1.60822513]
[1642626890842,2.32428277,3122.1,3121.6,2.34304207]
[1642626890843,2.32428277,3122.1,3122.0,0.00682108]
[1642626891241,2.32428277,3122.1,3122.0,1.60822513]
[1642626891542,2.32428277,3122.1,3121.9,0.00738951]
[1642626891940,2.32428277,3122.1,3122.0,1.62422756]
[1642626892843,2.32428277,3122.1,3121.9,1.63161707]
[1642626893040,2.32428277,3122.1,3121.9,0.00738951]
[1642626894987,2.32428277,3122.1,3121.9,1.63161707]
[1642626896189,2.32428277,3122.1,3121.9,2.43241707]
[1642626896894,2.32428277,3122.1,3121.9,0.00738951]
[1642626897937,2.32428277,3122.1,3121.8,0.00795793]
[1642626898439,2.32428277,3122.1,3121.8,1.63218549]
[1642626898844,2.32428277,3122.1,3121.9,0.00738951]
[1642626901350,5.18880588,3122.1,3121.8,0.00795793]
[1642626901588,0.462,3122.0,3121.8,0.00795793]
[1642626901787,2.98486808,3121.9,3121.8,0.00795793]
[1642626901989,3.44686808,3121.9,3121.5,0.0096632]
[1642626902488,3.44686808,3121.9,3121.6,2.01429715]
[1642626902888,3.44686808,3121.9,3121.7,0.00852635]
[1642626903090,3.44686808,3121.9,3121.8,2.01429715]
[1642626903289,3.43045138,3121.9,3121.8,2.01429715]
[1642626903490,3.43045138,3121.9,3121.8,2.02225508]
[1642626903991,0.462,3121.9,3121.8,2.02225508]
[1642626904595,3.46758277,3122.1,3121.8,2.02225508]
[1642626904792,3.46758277,3122.1,3121.9,2.01429715]
[1642626904994,3.46758277,3122.1,3122.0,2.01429715]
[1642626904995,2.32428277,3122.1,3122.0,2.01429715]
[1642626905753,1.2137,3123.2,3122.1,2.8700051]
[1642626905953,1.2137,3123.2,3122.3,0.80059]
[1642626906152,1.2137,3123.2,3122.4,2.01429715]
[1642626906353,1.2137,3123.2,3122.5,2.01429715]
[1642626906552,1.2137,3123.2,3122.6,2.01429715]
[1642626906751,1.2137,3123.2,3122.7,2.01429715]
[1642626906952,3.46471373,3123.1,3122.8,2.01429715]
[1642626907156,3.46471373,3123.1,3122.9,2.01429715]
[1642626907354,3.46471373,3123.1,3123.0,2.01429715]
[1642626907552,3.46471373,3123.1,3123.0,2.015434]
[1642626907953,2.01989208,3123.1,3123.0,2.015434]
[1642626909394,2.01989208,3123.1,3123.0,2.38746818]
[1642626919191,2.01989208,3123.1,3123.0,2.54749818]
[1642626919392,1.1372,3123.6,3123.0,2.54749818]
[1642626919592,1.1372,3123.6,3123.1,5.82415611]
[1642626919792,1.1372,3123.6,3123.2,2.01429715]
[1642626919793,0.00170527,3123.5,3123.2,2.01429715]
[1642626919994,0.00170527,3123.5,3123.4,0.18601709]
[1642626920234,0.02,3123.9,3123.4,2.38633133]
[1642626920437,0.02,3123.9,3123.5,2.01429715]
[1642626920642,2.26884278,3123.7,3123.4,0.37203418]
[1642626920839,2.26884278,3123.7,3123.5,1.96218927]
[1642626921039,0.00227369,3123.6,3123.5,1.96218927]
[1642626921838,0.00227369,3123.6,3123.5,4.84542815]
[1642626922038,0.00227369,3123.6,3123.5,3.12221927]
[1642626922239,0.00227369,3123.6,3123.5,2.12221927]
[1642626923040,0.00227369,3123.6,3123.5,2.25021927]
[1642626923240,0.00227369,3123.6,3123.5,2.09018927]
[1642626923439,1.45405637,3123.6,3123.5,1.96218927]
[1642626923638,3.16664591,3123.6,3123.4,0.37203418]
[1642626924081,0.00170527,3123.5,3123.4,0.37203418]
[1642626925085,0.72299768,3123.5,3123.4,0.37203418]
[1642626926290,1.18499768,3123.5,3123.4,0.37203418]
[1642626926789,1.1852782,3123.5,3123.4,0.37203418]
[1642626927188,0.46370527,3123.5,3123.4,0.37203418]
[1642626927845,0.00170527,3123.5,3123.4,0.37203418]
[1642626933591,0.00170527,3123.5,3123.4,0.50003418]
[1642626934791,0.00170527,3123.5,3123.4,0.37203418]
[1642626937766,1.79379776,3123.5,3123.4,0.37203418]
[1642626939989,1.79379776,3123.5,3123.4,2.29488492]
[1642626940192,1.79379776,3123.5,3123.4,0.37203418]
[1642626940393,2.25579776,3123.5,3123.4,0.37203418]
[1642626940591,2.97817254,3123.5,3123.4,0.37203418]
[1642626941692,3.77895254,3123.5,3122.9,0.128]
[1642626941892,1.09704555,3123.3,3122.9,0.128]
[1642626942292,1.09704555,3123.3,3123.0,1.9311929]
[1642626942939,1.09704555,3123.3,3122.9,0.128]
[1642626944141,1.09704555,3123.3,3122.4,0.16003]
[1642626944142,1.09704555,3123.3,3123.0,1.92742326]
[1642626944341,1.09704555,3123.3,3123.1,1.92742326]
[1642626944541,1.09704555,3123.3,3122.5,0.00397897]
[1642626944742,1.09704555,3123.3,3122.6,1.92689429]
[1642626945143,1.09704555,3123.3,3122.7,0.00284212]
[1642626945748,1.09704555,3123.3,3122.6,0.00341054]
[1642626946355,2.27812049,3122.7,3122.6,0.00341054]
[1642626946802,1.09704555,3123.3,3122.6,1.93030483]
[1642626947004,1.09704555,3123.3,3122.7,1.92689429]
[1642626947303,1.09704555,3123.3,3122.8,1.92916799]
[1642626947504,1.15553685,3123.4,3122.9,1.92689429]
[1642626947705,1.15553685,3123.4,3123.0,1.92689429]
[1642626947906,2.33909388,3123.3,3123.1,1.92689429]
[1642626948103,2.33909388,3123.3,3123.2,1.92689429]
[1642626948505,2.33909388,3123.3,3123.0,0.00113685]
[1642626948807,2.33909388,3123.3,3122.9,1.92859956]
[1642626949207,2.33909388,3123.3,3123.0,0.00113685]
[1642626950842,2.33909388,3123.3,3123.0,1.92803114]
[1642626952244,2.33909388,3123.3,3123.0,2.78031211]
[1642626952446,2.33909388,3123.3,3123.1,1.92689429]
[1642626952647,2.33909388,3123.3,3123.2,4.25036]
[1642626952845,2.33909388,3123.3,3123.2,2.72725429]
[1642626953045,2.33909388,3123.3,3123.2,2.72196809]
[1642626953446,2.33909388,3123.3,3123.2,1.92689429]
[1642626954089,2.33909388,3123.3,3123.0,1.92803114]
[1642626954294,2.33909388,3123.3,3123.0,4.75048106]
[1642626954489,2.33909388,3123.3,3123.1,1.92689429]
[1642626955093,2.33909388,3123.3,3123.2,1.92689429]
[1642626955496,2.33909388,3123.3,3123.0,0.00113685]
[1642626955897,2.33909388,3123.3,3122.9,1.92689429]
[1642626956099,2.33909388,3123.3,3123.0,1.92689429]
[1642626956295,1.16420236,3123.2,3123.1,1.92689429]
[1642626956696,1.16420236,3123.2,3123.0,0.00113685]
[1642626957097,1.16420236,3123.2,3122.8,0.0022737]
[1642626957742,1.16420236,3123.2,3122.8,1.92916799]
[1642626957948,1.21097717,3123.1,3122.8,1.92916799]
[1642626958145,1.21097717,3123.1,3122.9,1.92859956]
[1642626958146,6.39897717,3123.0,3122.9,1.92859956]
[1642626958341,1.21097717,3123.0,3122.9,1.92859956]
[1642626958944,1.28820231,3123.0,3122.9,1.92859956]
[1642626959446,0.462,3123.0,3122.9,1.92859956]
[1642626959844,1.30532879,3123.0,3122.9,1.92859956]
[1642626960043,0.462,3123.0,3122.9,1.92859956]
[1642626962901,1.28800794,3123.0,3122.9,1.92859956]
[1642626964402,5.42851794,3123.0,3122.9,1.19629163]
[1642626964806,0.8009918,3122.8,3122.1,0.73230793]
[1642626965004,3.2039035,3122.9,3122.1,0.73230793]
[1642626965005,0.80109,3122.6,3122.1,0.73230793]
[1642626965238,1.9154357,3122.5,3122.2,0.00397897]
[1642626965444,2.29145554,3122.4,3122.2,0.00397897]
[1642626965642,0.462,3122.3,3122.2,0.00397897]
[1642626966443,1.1912,3122.3,3122.2,0.00397897]
[1642626972951,5.65,3122.2,3122.1,0.73230793]
[1642626973250,5.65,3122.2,3121.1,1.62422756]
[1642626973251,0.80118,3121.9,3121.1,1.62422756]
[1642626973451,0.80118,3121.9,3121.0,1.75222756]
[1642626973452,0.462,3121.8,3121.0,1.75222756]
[1642626973656,0.462,3121.8,3121.2,0.00568423]
[1642626974454,0.8011854,3121.7,3121.0,1.63104864]
[1642626974653,1.26317,3121.6,3121.1,1.63048021]
[1642626974855,2.10029614,3121.5,3121.1,1.63048021]
[1642626975361,2.10029614,3121.5,3121.1,0.00625265]
[1642626975556,2.10029614,3121.5,3121.2,0.72675759]
[1642626975757,1.7791402,3121.4,3121.2,0.72675759]
[1642626975958,1.7791402,3121.4,3121.3,0.00511581]
[1642626977186,1.7791402,3121.4,3120.9,0.0073895]
[1642626977991,0.462,3121.3,3120.9,0.0073895]
[1642626978192,0.462,3121.3,3120.7,0.00852635]
[1642626978193,1.26321,3121.3,3120.7,0.00852635]
[1642626978393,2.06447,3121.3,3120.7,0.00852635]
[1642626978991,2.06447,3121.3,3120.6,0.00909477]
[1642626980844,2.06447,3121.3,3120.5,0.0096632]
[1642626982645,1.21789762,3120.6,3120.5,0.0096632]
[1642626982848,0.462,3121.1,3120.8,0.08178663]
[1642626983248,1.61918842,3121.1,3120.9,0.0073895]
[1642626984501,2.42053662,3121.1,3121.0,1.45882485]
[1642626984901,2.42053662,3121.1,3121.0,1.46564593]
[1642626985101,2.42053662,3121.1,3121.0,0.00682108]
[1642626985501,2.42053662,3121.1,3120.8,0.08178663]
[1642626985502,2.42053662,3121.1,3120.9,0.0073895]
[1642626985705,2.42053662,3121.1,3121.0,1.45955691]
[1642626986102,2.42053662,3121.1,3121.0,1.46637799]
[1642626986304,2.42053662,3121.1,3121.0,0.00682108]
[1642626986803,1.61918842,3121.1,3120.9,0.0073895]
[1642626988049,3.3816602,3121.4,3121.0,1.38189161]
[1642626988050,1.7791402,3121.4,3121.0,1.38189161]
[1642626988252,1.7791402,3121.4,3121.1,2.7740589]
[1642626988450,1.7791402,3121.4,3121.2,1.38189161]
[1642626988848,1.7791402,3121.4,3121.3,0.00511581]
[1642626989048,1.7791402,3121.4,3121.3,1.38700742]
[1642626990048,1.7791402,3121.4,3121.3,0.00511581]
[1642626990254,3.0501171,3121.4,3121.3,0.00511581]
[1642626990454,3.0501171,3121.4,3120.9,0.0073895]
[1642626990653,3.0501171,3121.4,3121.0,1.38062591]
[1642626991056,3.0501171,3121.4,3121.1,0.00625265]
[1642626991254,3.0501171,3121.4,3121.2,1.38062591]
[1642626991501,1.7791402,3121.4,3121.2,1.38062591]
[1642626991694,1.7791402,3121.4,3121.3,0.00511581]
[1642626992093,1.7791402,3121.4,3121.3,1.38574172]
[1642626992894,1.7791402,3121.4,3121.3,0.00511581]
[1642626993194,1.7791402,3121.4,3120.9,0.0073895]
[1642626993795,1.7791402,3121.4,3121.0,1.37895155]
[1642626994197,1.7791402,3121.4,3121.1,0.00625265]
[1642626994398,1.7791402,3121.4,3121.2,1.37895155]
[1642626994798,1.7791402,3121.4,3121.3,1.38173058]
[1642626996447,1.7791402,3121.4,3121.3,0.00511581]
[1642626996848,1.7791402,3121.4,3121.3,1.37749429]
[1642626997047,1.7791402,3121.4,3121.0,1.37749429]
[1642626997248,1.7791402,3121.4,3121.3,0.00511581]
[1642626997448,1.7791402,3121.4,3120.8,0.08178663]
[1642626997449,1.7791402,3121.4,3121.1,0.00625265]
[1642626997849,1.7791402,3121.4,3120.9,0.0073895]
[1642626998049,1.7791402,3121.4,3121.0,1.37762408]
[1642626998451,1.7791402,3121.4,3121.1,0.00625265]
[1642626999093,1.7791402,3121.4,3120.9,0.0073895]
[1642626999398,1.7791402,3121.4,3121.0,1.38005818]
[1642626999797,1.7791402,3121.4,3121.1,0.00625265]
[1642626999998,1.7791402,3121.4,3121.2,1.38005818]
[1642627000200,1.7791402,3121.4,3121.1,0.00625265]
[1642627000398,1.7791402,3121.4,3121.3,0.00511581]
[1642627000599,1.7791402,3121.4,3120.9,0.0073895]
[1642627000801,1.7791402,3121.4,3121.0,1.38096346]
[1642627001202,1.7791402,3121.4,3121.1,0.00625265]
[1642627001800,1.37854906,3121.0,3120.9,0.0073895]
[1642627005651,1.7791402,3121.4,3120.9,0.0073895]
[1642627006894,1.48347445,3121.1,3120.9,0.0073895]
[1642627013255,1.48347445,3121.1,3120.9,1.63161706]
[1642627013455,1.48347445,3121.1,3120.9,0.0073895]
[1642627015398,1.48347445,3121.1,3120.9,1.63161706]
[1642627015800,1.7791402,3121.4,3121.0,2.95682108]
[1642627016000,1.7791402,3121.4,3121.0,0.00682108]
[1642627016199,1.7791402,3121.4,3121.1,0.00625265]
[1642627016399,1.7791402,3121.4,3121.0,1.63104864]
[1642627016599,1.7791402,3121.4,3121.1,0.00625265]
[1642627016806,1.7791402,3121.4,3121.2,1.34819278]
[1642627017200,1.7791402,3121.4,3121.3,0.00511581]
[1642627017401,1.7791402,3121.4,3121.3,1.35330859]
[1642627029205,3.12524848,3121.4,3121.3,1.35330859]
[1642627030109,3.12541656,3121.4,3121.3,1.35330859]
[1642627030305,1.7791402,3121.4,3121.3,1.35330859]
[1642627030505,3.12539741,3121.4,3121.3,1.35330859]
[1642627031807,3.12539741,3121.4,3121.3,1.03927467]
[1642627032012,3.12539741,3121.4,3120.1,7.89505615]
[1642627032013,1.10684604,3121.0,3120.4,1.19629163]
[1642627032209,1.2634059,3120.9,3120.4,1.19629163]
[1642627032412,1.2634059,3120.9,3120.5,0.00454739]
[1642627032413,3.2998059,3120.9,3120.5,0.00454739]
[1642627032610,4.8007059,3120.9,3120.5,0.00454739]
[1642627032851,3.9992059,3120.9,3120.0,0.0073895]
[1642627033052,3.9992059,3120.9,3119.9,0.00795793]
[1642627033253,3.9992059,3120.9,3119.8,0.00852635]
[1642627033553,0.8015463,3120.4,3119.8,0.73572662]
[1642627033753,1.70935982,3120.3,3119.8,0.73572662]
[1642627033953,1.70935982,3120.3,3119.9,0.00795793]
[1642627034355,0.462,3120.2,3119.9,0.00795793]
[1642627035154,0.368584,3120.2,3119.9,0.00795793]
[1642627035357,0.368584,3120.2,3119.8,0.00852635]
[1642627035758,0.368584,3120.2,3119.7,2.42773681]
[1642627036157,0.368584,3120.2,3119.8,0.73572248]
[1642627036597,0.368584,3120.2,3119.9,0.00795793]
[1642627037801,0.368584,3120.2,3119.6,0.0096632]
[1642627038003,1.45193183,3119.7,3119.6,0.0096632]
[1642627038203,2.37959915,3119.7,3119.6,2.42830524]
[1642627038405,2.37959915,3119.7,3119.6,0.0096632]
[1642627038605,2.37959915,3119.7,3119.6,0.73685888]
[1642627041853,2.37959915,3119.7,3119.6,2.34791276]
[1642627042454,2.37959915,3119.7,3119.6,0.0096632]
[1642627043055,2.37959915,3119.7,3119.6,1.62071708]
[1642627043458,2.37959915,3119.7,3119.6,0.0096632]
[1642627044102,0.80149,3120.2,3119.6,0.0096632]
[1642627044405,1.2322,3120.4,3119.7,1.61105388]
[1642627044601,1.2322,3120.4,3119.7,0.1282]
[1642627044800,1.2322,3120.4,3119.8,0.00852635]
[1642627045202,2.16255231,3120.0,3119.7,0.00909477]
[1642627045608,2.16255231,3120.0,3119.7,1.62014865]
[1642627045810,3.88114,3120.9,3119.8,2.82155466]
[1642627045811,3.0798,3120.9,3119.8,2.82155466]
[1642627046012,2.3907,3121.1,3120.0,1.61105388]
[1642627046206,2.3907,3121.1,3120.3,0.01213882]
[1642627046612,1.2472,3121.1,3120.4,0.00511581]
[1642627046807,3.49228342,3121.1,3120.4,1.2855648]
[1642627047125,0.00341054,3121.0,3120.5,1.89908388]
[1642627047308,0.00341054,3121.0,3120.6,0.02468281]
[1642627047508,1.1909,3122.1,3120.7,1.72984]
[1642627047509,0.00284212,3120.9,3120.7,1.72984]
[1642627047752,0.00284212,3120.9,3120.7,5.71142466]
[1642627047953,0.0022737,3120.8,3120.7,10.15092388]
[1642627048350,0.0022737,3120.8,3120.7,13.04062128]
[1642627048553,0.0022737,3120.8,3120.7,13.84153698]
[1642627048952,0.462,3122.8,3120.8,5.65]
[1642627049154,1.1578,3122.6,3121.0,0.02181466]
[1642627049356,0.00284211,3121.3,3121.1,1.60263301]
[1642627049558,0.00284211,3121.3,3121.2,9.26810612]
[1642627049756,1.1578,3122.6,3121.2,9.26810612]
[1642627049757,1.1578,3122.6,3121.3,5.65]
[1642627049956,3.20143852,3122.0,3121.4,2.25193032]
[1642627050159,3.20143852,3122.0,3121.5,0.128]
[1642627050357,3.20143852,3122.0,3121.4,0.128]
[1642627050662,3.20143852,3122.0,3121.5,0.16003]
[1642627050858,3.20143852,3122.0,3121.6,0.128]
[1642627051258,3.20143852,3122.0,3121.6,0.92869]
[1642627052015,3.20143852,3122.0,3121.7,0.86919394]
[1642627052217,3.20143852,3122.0,3121.8,0.128]
[1642627052415,3.20143852,3122.0,3121.9,0.86919394]
[1642627052819,3.20143852,3122.0,3121.7,0.86919394]
[1642627052820,3.20541749,3122.0,3121.7,0.86919394]
[1642627053019,3.20541749,3122.0,3121.8,0.128]
[1642627053218,3.20143852,3122.0,3121.9,0.86919394]
[1642627053615,3.20143852,3122.0,3121.6,0.128]
[1642627053616,3.20541749,3122.0,3121.7,0.86919394]
[1642627054016,0.00341054,3121.9,3121.8,0.86919394]
[1642627054218,0.00341054,3121.9,3121.2,0.14029367]
[1642627054418,0.00341054,3121.9,3121.3,0.87188144]
[1642627054616,0.00284212,3121.8,3121.3,0.87188144]
[1642627055016,0.0022737,3121.7,3121.3,0.87188144]
[1642627055450,3.20143852,3122.0,3121.3,0.87188144]
[1642627055451,0.00170527,3121.6,3121.3,0.87188144]
[1642627055859,3.20143852,3122.0,3121.3,0.87188144]
[1642627055860,1.26544834,3121.5,3121.3,0.87188144]
[1642627056254,1.26431149,3121.5,3121.4,0.87188144]
[1642627056653,1.26544834,3121.5,3121.0,0.87188144]
[1642627056855,2.09845699,3121.4,3121.0,0.87188144]
[1642627057053,4.9476982,3121.4,3121.1,0.00113684]
[1642627057251,2.09845699,3121.4,3121.1,0.87301828]
[1642627057452,2.09845699,3121.4,3121.2,0.87188144]
[1642627057652,2.09845699,3121.4,3121.3,0.87188144]
[1642627058054,1.54419489,3120.9,3120.6,0.00397896]
[1642627058654,1.54419489,3120.9,3120.5,0.00454739]
[1642627058852,1.64939696,3120.8,3120.5,0.00454739]
[1642627059116,2.45076696,3120.8,3120.5,0.00454739]
[1642627059515,2.45076696,3120.8,3120.0,0.0073895]
[1642627059716,0.462,3120.7,3120.0,0.0073895]
[1642627059917,1.51012162,3120.1,3120.0,0.0073895]
[1642627060117,1.51012162,3120.1,3119.6,1.61229621]
[1642627060118,1.94125288,3119.7,3119.6,1.61229621]
[1642627060319,1.51012162,3120.1,3119.6,1.61229621]
[1642627060518,1.51012162,3120.1,3119.7,1.60263301]
[1642627060720,1.51012162,3120.1,3119.7,0.00909477]
[1642627060920,1.51012162,3120.1,3119.8,0.00852635]
[1642627061134,1.51012162,3120.1,3119.7,0.00909477]
[1642627061922,1.77888771,3120.0,3119.7,0.00909477]
[1642627062122,1.77888771,3120.0,3119.7,1.61172778]
[1642627062523,1.77888771,3120.0,3119.8,0.00852635]
[1642627062952,1.77888771,3120.0,3119.7,0.81035477]
[1642627063154,1.77888771,3120.0,3119.8,0.00852635]
[1642627065360,1.41534276,3120.3,3119.8,0.00852635]
[1642627065561,1.6092,3120.8,3119.8,1.61115936]
[1642627065761,1.6092,3120.8,3120.0,0.8012]
[1642627065762,1.1472,3120.8,3120.0,0.8012]
[1642627066162,1.1472,3120.8,3120.1,0.00682108]
[1642627067198,1.1472,3120.8,3120.1,1.60945409]
[1642627067397,2.10095652,3120.7,3120.2,0.80113]
[1642627067598,2.10095652,3120.7,3120.2,0.96741266]
[1642627067797,2.10095652,3120.7,3120.3,0.13368423]
[1642627068001,2.10095652,3120.7,3120.3,1.73574423]
[1642627068202,2.05095652,3120.7,3120.4,0.00511581]
[1642627072862,2.05095652,3120.7,3120.6,4.951]
[1642627073057,2.05095652,3120.7,3120.6,1.65691234]
[1642627073258,2.05095652,3120.7,3120.6,1.6608913]
[1642627073458,1.46092519,3120.9,3120.6,1.6608913]
[1642627073459,1.1288,3121.4,3120.6,1.6608913]
[1642627073658,1.1288,3121.4,3120.7,0.85591234]
[1642627073862,1.1288,3121.4,3120.7,0.85932288]
[1642627074109,1.1288,3121.4,3120.8,0.00284211]
[1642627074499,2.09291574,3120.9,3120.8,0.00284211]
[1642627076505,2.09291574,3120.9,3120.8,0.85875445]
[1642627089199,2.09291574,3120.9,3120.4,0.128]
[1642627089200,5.4890887,3120.9,3120.4,0.128]
[1642627089601,5.4890887,3120.9,3120.5,0.00170528]
[1642627090204,6.2905387,3120.9,3120.5,0.00170528]
[1642627090606,7.4826387,3120.9,3120.5,0.00170528]
[1642627091604,1.60287,3120.8,3120.5,0.00170528]
[1642627091806,3.63375707,3120.7,3120.5,0.00170528]
[1642627092009,0.80138,3120.7,3120.5,0.00170528]
[1642627092408,1.19334124,3120.6,3120.5,0.00170528]
[1642627093653,4.54822574,3120.9,3120.5,0.00170528]
[1642627093654,4.08622574,3120.9,3120.5,0.00170528]
[1642627093852,3.28501574,3120.9,3120.5,0.00170528]
[1642627094657,4.51568464,3120.9,3120.5,0.00170528]
[1642627097002,5.31690464,3120.9,3120.5,0.00170528]
[1642627097204,4.51568464,3120.9,3120.5,0.00170528]
[1642627097904,4.51568464,3120.9,3120.3,1.60263301]
[1642627097905,4.51568464,3120.9,3120.4,0.0022737]
[1642627098702,4.51568464,3120.9,3120.4,1.60490671]
[1642627099301,4.51568464,3120.9,3120.5,1.60263301]
[1642627099501,3.32358464,3120.9,3120.4,1.60490671]
[1642627099701,3.32358464,3120.9,3120.6,0.00113685]
[1642627100776,2.09291574,3120.9,3120.6,0.00113685]
[1642627100978,1.1527,3121.6,3120.7,1.60263301]
[1642627101178,1.1527,3121.6,3120.8,1.73063301]